Workbook

Sheet 細分項目一覧
A1: 行事
A2: 一般
A3: 教師

Sheet 行事
A1: 1 | B1: 2013-04-06 | C1: 胸花 | D1: 祝入学 | E1: 100 | F1: 160 | G1: 16800 | H1: 入学式

Sheet 一般
A1: 2 | B1: 2013-04-09 | C1: 週案付生徒教教育簿 | D1: 40名Ｂ | E1: 10 | F1: 1215 | G1: 12150
A2: 2 | B2: 2013-04-09 | C2: 週案合本生徒教育簿 | D2: 40名Ｃ | E2: 4 | F2: 1215 | G2: 4860
A3: 2 | B3: 2013-04-09 | C3: 週案付生徒教育簿Ａ４版 | D3: 40名Ａ４ | E3: 6 | F3: 1350 | G3: 8100
A4: 2 | B4: 2013-04-09 | C4: 教育週案A | E4: 1 | F4: 810 | G4: 810
A5: 2 | B5: 2013-04-09 | C5: 学級の記録 | E5: 1 | F5: 1215 | G5: 1215
A6: 3 | B6: 2013-04-02 | C6: ボードマスター専用カートリッジ | D6: 黒 | E6: 24 | F6: 720 | G6: 17280

Sheet 教師
A1: 3 | B1: 2013-04-12 | C1: Ｑ－Ｕ式学級づくり | E1: 3 | F1: 2100 | G1: 6300 | H1: ※研修

Sheet 1
A1: 別記第１号の２の２様式 | V1: 学校用
D2: 小額（物品購入・印刷製本・修繕等）執行決議書
R4: （１０万円以下）
A5: 決 裁 | B5: 校 長 | E5: 教 頭 | H5: 事 務 | N5: 起案年月日 | R5: 決裁年月日 | V5: 保存年限
N6: 2014-04-02 | V6: 5
A8: 下記のとおり執行する。
S9: 伝票№ | V9: 1
A11: 平成26年度 | D11: 一般会計 | G11: 款 | I11: 項 | K11: 目 | M11: 事 業 | R11: 節 | T11: 細節 | V11: 細々節
G12: 10 | I12: 3 | K12: 1 | M12: 中学校教育推進事業費 | R12: 11 | T12: 01 | V12: 消耗品費
A13: 件 名 | D13: =B21 -> 胸花（祝入学） | L13: =IF(ISTEXT(B22),"他","") ->  | M13: 事業予算額 | S13: 2233000 | X13: 円
A14: 発注予定月日 | D14: =WORKDAY((N6),3,L38:L56) -> 2014-04-07 | M14: 支出負担行為済額 | S14: 0 | X14: 円
A15: 完了予定月日 | D15: =WORKDAY((D14),2,L38:L56) -> 2014-04-09 | M15: 事業予算残額 | S15: 2233000 | X15: 円
A16: 発注金額 | D16: =V32 -> 16800 | L16: 円 | M16: 業務予算額 | S16: =AA32 -> 20160 | X16: 円
A17: 発注先 （業者名）
A19: 物品購入等内訳書 | U19: （単位：円）
A20: № | B20: 品 名 | I20: 規 格 | M20: 数量 | O20: 定 価 （円） | S20: 購入単価 （円） | V20: 購入金額 (円） | AA20: 定価計算 | AC20: 項目一覧
A21: 1 | B21: 胸花（祝入学） | M21: 160 | O21: 120 | S21: 100 | V21: =S21*M21 -> 16000 | AA21: =O21*M21 -> 19200 | AC21: 1 | AD21: 行事
A22: 2 | AA22: 0 | AC22: 2
A23: 3 | AA23: 0 | AC23: 3
A24: 4 | AA24: 0 | AC24: 4
A25: 5 | AA25: 0 | AC25: 5
A26: 6 | AA26: 0 | AC26: 6
A27: 7 | AA27: 0 | AC27: 7
A28: 8 | AA28: 0 | AC28: 8
A29: 9 | AA29: 0 | AC29: 9
A30: 10 | AA30: 0 | AC30: 10
B31: 消 費 税 | V31: 800 | Z31: 内税 | AA31: =SUM(AA21:AA30) -> 19200
B32: 合 計 | V32: =SUM(V21:X31) -> 16800 | Z32: 外税 | AA32: =AA31*1.05 -> 20160
A34: 使用目的 | O34: 発注月日 | S34: 完了月日 | W34: 完 了 検査印
A35: No.1 | C35: 事務用 | F35: No.4 | J35: No.7
A36: No.2 | C36: 教師用 | F36: No.5 | J36: No.8
A37: No.3 | C37: 管理用 | F37: No.6 | J37: No.9
A38: ニチドク事務機 株式会社 石狩営業所
A39: 株式会社 チャンピオン商会
A40: 株式会社 金岡商店
A41: 株式会社 サポートサプライ
A42: ダイワスポーツ 株式会社
A43: 株式会社 北海道教科書供給所
A44: 有限会社 第一薬局

Sheet 2
A1: 別記第１号の２の２様式 | U1: 学校用
D2: 小額（物品購入・印刷製本・修繕等）執行決議書
A4: 学校名 石狩市立花川中学校 | Q4: （１０万円以下）
A5: 決 裁 | B5: 校 長 | E5: 教 頭 | H5: 事 務 | N5: 起案年月日 | Q5: 決裁年月日 | U5: 保存年限
N6: 2014-04-06 | U6: 5
A8: 下記のとおり執行する。
R9: 伝票№ | U9: 2
A11: 平成26年度 | D11: 一般会計 | G11: 款 | I11: 項 | K11: 目 | M11: 事 業 | Q11: 節 | S11: 細節 | U11: 細々節
G12: 10 | I12: 3 | K12: 1 | M12: 中学校教育推進事業費 | Q12: 11 | S12: 01 | U12: 消耗品費
A13: 件 名 | D13: =B21 -> パイロット ボードマスター 専用カートリッジ 黒 | L13: =IF(ISTEXT(B22),"他","") -> 他 | M13: 事業予算額 | R13: 2233000 | W13: 円
A14: 発注予定月日 | D14: =WORKDAY((N6),3,J41:J59) -> 2014-04-10 | M14: 支出負担行為済額 | R14: =INDIRECT(U9-1&"!D16")+INDIRECT(U9-1&"!S14") -> 16800 | W14: 円
A15: 完了予定月日 | D15: =WORKDAY((D14),2,J41:J59) -> 2014-04-14 | M15: 事業予算残額 | R15: =R13-R14 -> 2216200 | W15: 円
A16: 発注金額 | D16: =U32 -> 25590 | L16: 円 | M16: 業務予算額 | R16: =IF(U31="税込",AB31,AB32) -> 28200 | W16: 円
A17: 発注先 （業者名） | D17: 株式会社 北海教材社 石狩営業所
A19: 物品購入等内訳書 | T19: （単位：円）
A20: № | B20: 品 名 | I20: 規 格 | M20: 数量 | O20: 定 価 （円） | R20: 購入単価 （円） | U20: 購入金額 (円） | Z20: 購入金額 税のみ | AB20: 定価計算
A21: 1 | B21: パイロット ボードマスター 専用カートリッジ 黒 | M21: 30 | O21: 70 | R21: 67 | U21: =R21*M21 -> 2010 | Z21: =ROUNDDOWN((U21*0.08),0) -> 160 | AB21: =O21*M21 -> 2100
A22: 2 | B22: Ｑ－Ｕ式学級づくり中学校 | M22: 3 | O22: 2300 | R22: 2100 | U22: 6300 | Z22: =ROUNDDOWN((U22*0.08),0) -> 504 | AB22: =O22*M22 -> 6900
A23: 3 | B23: エプロンブロック 500(340)×600mm | M23: 24 | O23: 800 | R23: 720 | U23: 17280 | Z23: 1382 | AB23: 19200
A24: 4 | U24: 0 | Z24: 0 | AB24: 0
A25: 5 | U25: 0 | Z25: 0 | AB25: 0
A26: 6 | U26: 0 | Z26: 0 | AB26: 0
A27: 7 | U27: 0 | Z27: 0 | AB27: 0
A28: 8 | U28: 0 | Z28: 0 | AB28: 0
A29: 9 | U29: 0 | Z29: 0 | AB29: 0
A30: 10 | U30: 0 | Z30: 0 | AB30: 0
B31: 消 費 税 | U31: =IF(OR(D17="株式会社 北海教材社 石狩営業所",D17="有限会社 第一薬局",D17="株式会社 北海道教科書供給所",D17="有限会社 北海道学校用品協会"),"税込",(Y31)) -> 税込 | Y31: 税 | Z31: =SUM(Z21:Z30) -> 2046 | AA31: 税抜 | AB31: =SUM(AB21:AB30) -> 28200
B32: 合 計 | U32: =SUM(U21:W31) -> 25590 | AA32: 税込 | AB32: =AB31*1.05 -> 29610
A34: 使用目的 | O34: 発注月日 | R34: 完了月日 | U34: 完 了 検査印
A35: 1 | E35: 5 | I35: 9
A36: 2 | E36: 6 | I36: 10
A37: 3 | E37: 7
A38: 4 | E38: 8
A40: 花川中学校 市経理業者名一覧 | J40: 花川中学校平成26年度休日 | O40: 使用目的一覧
A41: 株式会社 北海教材社 石狩営業所 | J41: 2014-04-07 | K41: 振替休日 | O41: 事務用
A42: 有限会社 北海道学校用品協会 | J42: 2014-04-28 | K42: 振替休日 | O42: 管理用
A43: ニチドク事務機 株式会社 石狩営業所 | J43: 2014-04-29 | K43: 昭和の日 | O43: 授業用
A44: 株式会社 チャンピオン商会 | J44: 2014-05-05 | K44: こどもの日 | O44: 教授用
A45: 株式会社 金岡商店 | J45: 2014-05-06 | K45: 振替休日 | O45: 行事用
A46: 株式会社 サポートサプライ | J46: 2014-06-07 | K46: 振替休日 | O46: 清掃用
A47: ダイワスポーツ 株式会社 | J47: 2014-09-23 | K47: 秋分の日 | O47: 保健室用
A48: 株式会社 北海道教科書供給所 | J48: 2014-10-13 | K48: 体育の日 | O48: トイレ用
A49: 有限会社 第一薬局 | J49: 2014-11-03 | K49: 文化の日 | O49: 視聴覚用
J50: 2014-11-24 | K50: 振替休日
J51: 2014-12-23 | K51: 天皇誕生日
J52: 2014-12-29 | K52: 学校閉鎖日
J53: 2014-12-30 | K53: 学校閉鎖日
J54: 2014-12-31 | K54: 学校閉鎖日
J55: 2015-01-01 | K55: 学校閉鎖日
J56: 2015-01-02 | K56: 学校閉鎖日
J57: 2015-01-03 | K57: 学校閉鎖日
J58: 2015-01-12 | K58: 成人の日
J59: 2015-02-11 | K59: 建国記念日

Sheet 2(見本)
F1: ←塗りつぶし箇所のみ入力します。
C6: 別記第１号の２の２様式 | W6: 学校用
F7: 小額（物品購入・印刷製本・修繕等）執行決議書
C9: 学校名 石狩市立花川中学校 | S9: （１０万円以下）
C10: 決 裁 | D10: 校 長 | G10: 教 頭 | J10: 事 務 | P10: 起案年月日 | S10: 決裁年月日 | W10: 保存年限
P11: 2014-04-05 | W11: 5
C13: 下記のとおり執行する。
T14: 伝票№ | W14: 2
C16: 平成26年度 | F16: 一般会計 | I16: 款 | K16: 項 | M16: 目 | O16: 事 業 | S16: 節 | U16: 細節 | W16: 細々節
I17: 10 | K17: 3 | M17: 1 | O17: 中学校教育推進事業費 | S17: 11 | U17: 01 | W17: 消耗品費
C18: 件 名 | F18: =D26 -> パイロット ボードマスター 専用カートリッジ 黒 | N18: =IF(ISTEXT(D27),"他","") -> 他 | O18: 事業予算額 | T18: 2233000 | Y18: 円
C19: 発注予定月日 | F19: =WORKDAY((P11),3,G47:G65) -> 2014-04-10 | O19: 支出負担行為済額 | T19: =INDIRECT(W14-1&"!D16")+INDIRECT(W14-1&"!S14") -> 16800 | Y19: 円
C20: 完了予定月日 | F20: =WORKDAY((F19),2,G47:G65) -> 2014-04-14 | O20: 事業予算残額 | T20: =T18-T19 -> 2216200 | Y20: 円
C21: 発注金額 | F21: =W37 -> 25590 | N21: 円 | O21: 業務予算額 | T21: =IF(W36="税込",AE36,AE37) -> 28200 | Y21: 円
C22: 発注先 （業者名） | F22: 株式会社 北海教材社 石狩営業所
C24: 物品購入等内訳書 | V24: （単位：円）
C25: № | D25: 品 名 | K25: 規 格 | O25: 数量 | Q25: 定 価 （円） | T25: 購入単価 （円） | W25: 購入金額 (円） | AC25: 購入金額 税のみ | AE25: 定価計算
C26: 1 | D26: パイロット ボードマスター 専用カートリッジ 黒 | O26: 30 | Q26: 70 | T26: 67 | W26: =T26*O26 -> 2010 | AC26: =ROUNDDOWN((W26*0.08),0) -> 160 | AE26: =Q26*O26 -> 2100
C27: 2 | D27: Ｑ－Ｕ式学級づくり中学校 | O27: 3 | Q27: 2300 | T27: 2100 | W27: 6300 | AC27: =ROUNDDOWN((W27*0.08),0) -> 504 | AE27: 6900
C28: 3 | D28: エプロンブロック 500(340)×600mm | O28: 24 | Q28: 800 | T28: 720 | W28: 17280 | AC28: =ROUNDDOWN((W28*0.08),0) -> 1382 | AE28: 19200
C29: 4 | W29: 0 | AC29: 0 | AE29: 0
C30: 5 | W30: 0 | AC30: 0 | AE30: 0
C31: 6 | W31: 0 | AC31: 0 | AE31: 0
C32: 7 | W32: 0 | AC32: 0 | AE32: 0
C33: 8 | W33: 0 | AC33: 0 | AE33: 0
C34: 9 | W34: 0 | AC34: 0 | AE34: 0
C35: 10 | W35: 0 | AC35: 0 | AE35: 0
D36: 消 費 税 | W36: =IF(OR(F22="株式会社 北海教材社 石狩営業所",F22="有限会社 第一薬局",F22="株式会社 北海道教科書供給所"),"税込",SUM(W26:W35)*0.08) -> 税込 | AB36: 税 | AC36: =SUM(AC26:AC35) -> 2046 | AD36: 税抜 | AE36: =SUM(AE26:AE35) -> 28200
D37: 合 計 | W37: =SUM(W26:Y36) -> 25590 | AD37: 税込 | AE37: =AE36*1.05 -> 29610
C39: 使用目的 | Q39: 発注月日 | T39: 完了月日 | W39: 完 了 検査印
C40: 1 | G40: 5 | K40: 9
C41: 2 | G41: 6 | K41: 10
C42: 3 | G42: 7
C43: 4 | G43: 8
G46: 花川中学校平成26年度休日 | L46: 花川中学校 市経理業者名一覧 | U46: 使用目的一覧
G47: 2014-04-07 | H47: 振替休日 | L47: 株式会社 北海教材社 石狩営業所 | U47: 事務用
G48: 2014-04-28 | H48: 振替休日 | L48: 有限会社 北海道学校用品協会 | U48: 管理用
G49: 2014-04-29 | H49: 昭和の日 | L49: ニチドク事務機 株式会社 石狩営業所 | U49: 授業用
G50: 2014-05-05 | H50: こどもの日 | L50: 株式会社 チャンピオン商会 | U50: 教授用
G51: 2014-05-06 | H51: 振替休日 | L51: 株式会社 金岡商店 | U51: 行事用
G52: 2014-06-07 | H52: 振替休日 | L52: 株式会社 サポートサプライ | U52: 清掃用
G53: 2014-09-23 | H53: 秋分の日 | L53: ダイワスポーツ 株式会社 | U53: 保健室用
G54: 2014-10-13 | H54: 体育の日 | L54: 株式会社 北海道教科書供給所 | U54: トイレ用
G55: 2014-11-03 | H55: 文化の日 | L55: 有限会社 第一薬局 | U55: 視聴覚用
G56: 2014-11-24 | H56: 振替休日
G57: 2014-12-23 | H57: 天皇誕生日
G58: 2014-12-29 | H58: 学校閉鎖日
G59: 2014-12-30 | H59: 学校閉鎖日
G60: 2014-12-31 | H60: 学校閉鎖日
G61: 2015-01-01 | H61: 学校閉鎖日
G62: 2015-01-02 | H62: 学校閉鎖日
G63: 2015-01-03 | H63: 学校閉鎖日
G64: 2015-01-12 | H64: 成人の日
G65: 2015-02-11 | H65: 建国記念日
